bitfinex/quotes_SOLUSD_20251002
["timestamp","ask_amount","ask_price","bid_price","bid_amount"]
[1759397821982,0.7,224.76,224.73,7.3]
[1759397822861,4.44900915,224.77,224.73,7.3]
[1759397823085,0.7,224.76,224.73,7.3]
[1759397823389,4.44900915,224.77,224.73,7.3]
[1759397823564,5.14900915,224.77,224.73,7.3]
[1759397824785,0.7,224.77,224.73,7.3]
[1759397825769,11.12157307,224.79,224.73,7.3]
[1759397825973,5.14913149,224.77,224.73,7.3]
[1759397826888,4.44913149,224.77,224.73,7.3]
[1759397827087,5.14913149,224.77,224.73,7.3]
[1759397835187,4.44913149,224.77,224.73,7.3]
[1759397835387,0.7,224.76,224.73,7.3]
[1759397835585,15.57161224,224.77,224.73,38.6]
[1759397835586,0.7,224.75,224.73,38.6]
[1759397835896,0.7,224.74,224.73,38.6]
[1759397836596,0.7,224.76,224.73,38.6]
[1759397837394,5.14932967,224.76,224.73,38.6]
[1759397838373,4.44896912,224.78,224.73,38.6]
[1759397838590,4.44896912,224.78,224.74,0.69]
[1759397839183,5.14896912,224.78,224.73,38.6]
[1759397839380,133.6,224.81,224.74,0.69]
[1759397839577,0.7,224.83,224.76,20.8]
[1759397839776,0.7,224.82,224.76,52.79]
[1759397839990,0.7,224.81,224.76,52.1]
[1759397840195,31.3,224.86,224.76,52.1]
[1759397840196,0.7,224.8,224.76,52.1]
[1759397840406,0.7,224.82,224.76,52.79]
[1759397840699,4.4482007,224.81,224.76,57.2391891]
[1759397841599,5.1482007,224.81,224.76,57.2391891]
[1759397843099,0.65,224.83,224.77,0.67]
[1759397843982,4.44800284,224.82,224.76,56.5491891]
[1759397844300,0.67,224.81,224.76,56.5491891]
[1759397844697,0.67,224.81,224.76,57.2591891]
[1759397845202,5.11826998,224.81,224.76,57.2591891]
[1759397845407,5.11826998,224.81,224.76,52.81]
[1759397845704,0.67,224.8,224.77,31.3]
[1759397846096,4.44826998,224.81,224.77,31.3]
[1759397846307,5.11826998,224.81,224.77,31.3]
[1759397848783,0.67,224.83,224.77,32.01]
[1759397849400,0.67,224.82,224.77,32.01]
[1759397849784,4.4482007,224.81,224.77,32.01]
[1759397850813,144.01911386,224.84,224.77,32.01]
[1759397850814,4.447805,224.83,224.77,32.01]
[1759397851015,0.67,224.81,224.77,32.01]
[1759397851308,5.117805,224.83,224.77,31.3]
[1759397851515,5.117805,224.83,224.77,32.01]
[1759397853106,0.67,224.82,224.77,32.01]
[1759397854009,4.4482007,224.81,224.77,32.01]
[1759397854510,0.67,224.82,224.77,32.01]
[1759397854705,5.11807991,224.82,224.77,32.01]
[1759397856199,5.11807991,224.82,224.78,31.3]
[1759397857088,4.447805,224.83,224.79,31.3]
[1759397857288,0.67,224.82,224.79,31.3]
[1759397858717,132.9,224.84,224.79,31.3]
[1759397858926,132.9,224.84,224.8,0.71]
[1759397859990,132.9,224.84,224.81,0.71]
[1759397860191,132.9,224.84,224.82,31.3]
[1759397861994,138.01761233,224.84,224.82,31.3]
[1759397862196,137.34761233,224.84,224.82,31.3]
[1759397864620,138.01761233,224.84,224.82,31.3]
[1759397867813,133.57,224.84,224.82,31.3]
[1759397868125,10.28138214,224.88,224.83,0.71]
[1759397868422,0.67,224.87,224.83,5.15772801]
[1759397869621,0.67,224.87,224.82,35.74800224]
[1759397869823,0.67,224.87,224.82,36.45800224]
[1759397871309,14.05822582,224.88,224.85,20.8]
[1759397871310,9.61138214,224.88,224.85,20.8]
[1759397871508,42.39430463,224.94,224.86,31.99]
[1759397871830,0.67,224.92,224.86,31.28]
[1759397872127,0.67,224.91,224.86,31.28]
[1759397872503,0.67,224.9,224.86,31.28]
[1759397873445,0.67,224.92,224.87,0.71]
[1759397873738,4.44582759,224.93,224.87,0.71]
[1759397873947,0.67,224.92,224.87,0.71]
[1759397874301,4.44582759,224.93,224.88,0.67]
[1759397874503,5.13582759,224.93,224.89,31.28]
[1759397875525,5.13582759,224.93,224.89,31.95]
[1759397875740,5.13582759,224.93,224.89,31.28]
[1759397877033,0.69,224.93,224.89,31.28]
[1759397877431,0.69,224.92,224.89,31.28]
[1759397878419,4.44543231,224.95,224.89,31.28]
[1759397878623,0.69,224.92,224.89,31.28]
[1759397879749,5.13603799,224.92,224.89,31.28]
[1759397882739,5.13603799,224.92,224.87,5.11700466]
[1759397882938,5.13603799,224.92,224.88,31.93]
[1759397884738,5.13603799,224.92,224.89,31.26]
[1759397885344,0.69,224.92,224.89,31.26]
[1759397887142,4.44585776,224.93,224.89,31.26]
[1759397887143,0.69,224.94,224.89,31.26]
[1759397887342,0.69,224.93,224.89,31.26]
[1759397888342,5.13594416,224.93,224.89,31.26]
[1759397888849,4.44594416,224.93,224.89,31.26]
[1759397889056,0.69,224.92,224.89,31.26]
[1759397889621,4.44594416,224.93,224.89,31.26]
[1759397889826,5.13594416,224.93,224.89,31.26]
[1759397891148,15.5590131,224.95,224.89,31.26]
[1759397891347,0.69,224.92,224.9,31.26]
[1759397892151,5.13611587,224.92,224.9,31.26]
[1759397892330,4.44611587,224.92,224.85,20.8]
[1759397892646,4.44611587,224.92,224.86,31.26]
[1759397892647,0.69,224.91,224.86,31.26]
[1759397892837,0.69,224.91,224.86,31.93]
[1759397893859,0.69,224.9,224.86,31.93]
[1759397894031,0.69,224.89,224.79,4.39561694]
[1759397894231,1.49122377,224.86,224.77,0.67]
[1759397894447,2.18122377,224.85,224.78,31.26]
[1759397894631,0.69,224.84,224.78,31.26]
[1759397894827,1.49122377,224.85,224.78,31.26]
[1759397895046,0.69,224.83,224.78,31.26]
[1759397895256,4.44800284,224.82,224.78,31.93]
[1759397895755,5.13800284,224.82,224.79,20.8]
[1759397895934,5.13800284,224.82,224.73,25.72620112]
[1759397895935,0.69,224.81,224.75,0.67]
[1759397896140,0.69,224.81,224.76,31.26]
[1759397896347,0.69,224.81,224.76,31.93]
[1759397897147,4.44839857,224.8,224.76,31.93]
[1759397897752,4.44839857,224.8,224.77,0.67]
[1759397897949,4.44839857,224.8,224.76,31.26]
[1759397898451,0.69,224.79,224.76,20.8]
[1759397898633,0.69,224.81,224.77,31.26]
[1759397898834,0.69,224.8,224.77,31.26]
[1759397899054,0.69,224.81,224.77,31.26]
[1759397899864,138.037805,224.83,224.78,0.67]
[1759397900253,138.037805,224.83,224.77,31.26]
[1759397900254,137.347805,224.83,224.79,0.67]
[1759397900558,137.347805,224.83,224.8,31.93]
[1759397900761,0.69,224.82,224.78,31.26]
[1759397901070,0.69,224.81,224.78,31.26]
[1759397901460,137.347805,224.83,224.78,31.26]
[1759397901669,0.69,224.82,224.78,31.26]
[1759397902246,137.347805,224.83,224.78,31.93]
[1759397902459,138.057805,224.83,224.78,31.93]
[1759397902660,0.71,224.82,224.78,31.93]
[1759397903701,5.158135,224.82,224.78,31.93]
[1759397904252,5.158135,224.82,224.78,31.26]
[1759397904465,0.71,224.82,224.78,31.94]
[1759397904671,137.34782814,224.83,224.78,31.94]
[1759397904843,0.67,224.82,224.78,31.94]
[1759397905044,137.34782814,224.83,224.78,31.94]
[1759397905564,0.67,224.82,224.78,31.94]
[1759397905765,5.11801529,224.82,224.78,31.94]
[1759397905939,5.11801529,224.82,224.78,31.26]
[1759397906147,132.9,224.83,224.79,0.68]
[1759397906353,133.57,224.83,224.78,31.26]
[1759397906660,0.67,224.82,224.78,31.94]
[1759397906853,0.67,224.82,224.79,31.26]
[1759397909082,132.9,224.83,224.79,31.26]
[1759397909567,132.9,224.83,224.79,31.94]
[1759397909780,133.57,224.83,224.79,31.94]
[1759397910154,132.9,224.83,224.79,35.70859641]
[1759397910345,132.9,224.83,224.8,0.68]
[1759397911274,132.9,224.83,224.79,35.70859641]
[1759397911481,133.57,224.83,224.79,35.70859641]
[1759397913679,133.57,224.83,224.79,31.26]
[1759397914566,0.67,224.82,224.79,31.26]
[1759397916766,137.34788211,224.83,224.79,31.26]
[1759397916965,0.67,224.81,224.79,31.26]
[1759397917272,4.44801407,224.82,224.75,4.4492378]
[1759397917273,0.67,224.8,224.75,4.4492378]
[1759397917578,0.67,224.79,224.76,52.06]
[1759397917775,4.44801407,224.82,224.77,31.26]
[1759397917975,0.67,224.8,224.77,31.26]
[1759397918770,0.67,224.8,224.78,31.26]
[1759397920876,0.67,224.81,224.78,31.26]
[1759397921759,0.67,224.8,224.78,31.26]
[1759397921958,0.67,224.81,224.76,20.8]
[1759397922297,138.01784438,224.83,224.77,31.26]
[1759397922598,0.67,224.82,224.77,35.70888152]
[1759397922760,0.67,224.82,224.77,36.38888152]
[1759397924974,0.67,224.81,224.77,36.38888152]
[1759397925179,0.67,224.8,224.71,20.33060027]
[1759397925392,0.67,224.79,224.72,0.68]
[1759397925758,0.67,224.79,224.71,6.97203409]
[1759397925759,0.67,224.79,224.73,31.24]
[1759397925959,0.67,224.78,224.73,31.24]
[1759397926226,0.67,224.77,224.73,31.24]
[1759397926389,4.44905841,224.77,224.73,31.24]
[1759397926583,0.67,224.76,224.73,31.24]
[1759397926903,0.67,224.76,224.72,4.44998126]
[1759397927194,0.67,224.76,224.73,31.24]
[1759397930684,5.11925797,224.76,224.73,31.24]
[1759397931188,0.67,224.78,224.73,31.92]
[1759397932186,5.11898283,224.78,224.73,31.92]
[1759397932895,5.11898283,224.78,224.73,5.12976071]
[1759397933097,4.44859133,224.8,224.74,31.92]
[1759397933299,4.44859133,224.8,224.75,0.68]
[1759397933511,5.11859133,224.8,224.75,0.68]
[1759397936710,0.7,224.79,224.75,0.68]
[1759397937085,4.44800284,224.82,224.74,31.24]
[1759397937086,0.7,224.78,224.74,31.24]
[1759397937313,17.90014004,224.82,224.71,5.37002825]
[1759397937482,0.7,224.77,224.72,31.24]
[1759397937688,0.7,224.77,224.72,31.96]
[1759397937898,0.7,224.77,224.72,31.24]
[1759397938095,0.7,224.77,224.73,0.72]
[1759397938403,5.14899697,224.77,224.73,0.72]
[1759397941387,5.14899697,224.77,224.72,35.68994111]
[1759397941585,0.7,224.76,224.71,0.2]
[1759397941917,0.7,224.76,224.72,52.04]
[1759397942088,0.7,224.75,224.72,52.04]
[1759397942290,0.7,224.74,224.72,52.04]
[1759397942511,0.7,224.73,224.72,52.04]
[1759397944218,5.14978418,224.73,224.71,0.2]
[1759397947427,18.51489678,224.73,224.71,0.2]
[1759397948020,5.14978418,224.73,224.71,0.2]
[1759397948903,7.48191427,224.73,224.71,0.2]
[1759397949101,2.33213009,224.72,224.71,0.2]
[1759397949508,3.03213009,224.72,224.71,0.2]
[1759397949709,16.39902919,224.72,224.71,0.2]
[1759397950119,20.84901139,224.72,224.71,0.2]
[1759397951118,31.7254866,224.72,224.71,0.2]
[1759397951298,31.7254866,224.72,224.58,0.72]
[1759397951299,10.87647521,224.68,224.58,0.72]
[1759397951500,2.33213009,224.66,224.58,0.72]
[1759397951725,0.7,224.65,224.58,0.72]
[1759397952034,5.35288878,224.65,224.58,21.52]
[1759397952237,4.45156695,224.64,224.58,21.52]
[1759397952791,5.15156695,224.64,224.59,0.92]
[1759397953295,4.45156695,224.64,224.59,0.92]
[1759397953516,0.7,224.63,224.59,0.92]
[1759397954918,9.8042631,224.65,224.59,0.92]
[1759397955106,0.7,224.64,224.59,0.92]
[1759397955308,0.7,224.63,224.59,0.92]
[1759397956263,0.7,224.63,224.59,5.37250263]
[1759397958327,9.10427519,224.65,224.59,5.37250263]
[1759397958623,9.80427519,224.65,224.59,5.37250263]
[1759397959422,0.7,224.64,224.59,5.37250263]
[1759397959818,9.10427519,224.65,224.59,5.37250263]
[1759397959994,0.7,224.64,224.59,5.37250263]
[1759397960204,0.7,224.63,224.59,5.37250263]
[1759397960821,9.10427519,224.65,224.59,4.65250263]
[1759397961026,0.7,224.62,224.59,0.2]
[1759397962114,0.7,224.62,224.59,4.65252856]
[1759397962440,0.68,224.63,224.59,4.65252856]
[1759397963506,5.13138641,224.65,224.59,5.36252856]
[1759397963717,0.68,224.64,224.59,5.36252856]
[1759397963939,0.67,224.63,224.59,5.36252856]
[1759397965031,137.35117929,224.66,224.59,5.36252856]
[1759397965219,0.67,224.63,224.59,5.36252856]
[1759397965418,137.35117929,224.66,224.59,5.36252856]
[1759397965715,0.67,224.65,224.59,5.36252856]
[1759397965923,0.67,224.64,224.59,5.36252856]
[1759397966229,0.67,224.63,224.59,5.35252856]
[1759397966416,4.45138771,224.65,224.59,36.59252856]
[1759397966624,0.67,224.64,224.59,36.59252856]
[1759397967828,4.45138771,224.65,224.59,36.59252856]
[1759397967829,0.67,224.63,224.59,36.59252856]
[1759397968218,4.45138771,224.65,224.59,36.59252856]
[1759397968532,4.45138771,224.65,224.59,35.89252856]
[1759397968828,5.12138771,224.65,224.6,5.15226505]
[1759397969030,4.45138771,224.65,224.6,5.15226505]
[1759397969333,0.67,224.64,224.6,5.15226505]
[1759397970335,132.9,224.66,224.63,20.8]
[1759397970840,132.9,224.66,224.64,0.7]
[1759397971637,132.9,224.66,224.64,5.15153446]
[1759397972632,132.9,224.66,224.64,4.45153446]
[1759397973707,132.9,224.66,224.63,52.04]
[1759397973912,133.57,224.66,224.63,52.04]
[1759397974236,133.57,224.66,224.63,56.49174707]
[1759397974731,132.9,224.66,224.64,0.7]
[1759397974935,0.67,224.7,224.64,0.7]
[1759397975842,5.12042575,224.7,224.64,5.15154455]
[1759397976030,0.67,224.69,224.64,4.45154455]
[1759397976207,0.67,224.68,224.64,5.15154455]
[1759397977045,4.45018023,224.71,224.64,4.45154455]
[1759397977357,0.67,224.7,224.64,4.45154455]
[1759397977521,0.67,224.69,224.64,4.45154455]
[1759397977845,0.67,224.68,224.64,4.45154455]
[1759397978336,0.67,224.68,224.64,5.15154455]
[1759397980839,164.14,224.72,224.65,0.7]
[1759397980840,0.67,224.71,224.65,0.7]
[1759397982146,0.67,224.71,224.66,31.22]
[1759397982317,0.67,224.7,224.66,31.22]
[1759397982641,0.67,224.69,224.66,31.22]
[1759397987028,4.45018023,224.71,224.66,31.92]
[1759397987223,0.67,224.7,224.66,31.92]
[1759397987545,0.67,224.69,224.66,31.22]
[1759397990950,5.12018023,224.71,224.66,31.22]
[1759397991251,0.67,224.7,224.66,31.92]
[1759397991747,0.67,224.7,224.61,11.13005138]
[1759397991748,0.67,224.69,224.61,57.17215368]
[1759397991948,32.71335428,224.7,224.61,57.17215368]
[1759397991949,0.67,224.68,224.61,57.17215368]
[1759397992254,0.67,224.67,224.61,57.17215368]
[1759397992436,0.67,224.69,224.62,0.7]
[1759397992759,0.67,224.69,224.65,20.8]
[1759397992760,4.45077443,224.68,224.65,20.8]
[1759397992950,0.67,224.67,224.65,20.8]
[1759397994535,4.45077443,224.68,224.64,20.8]
[1759397994732,5.13057856,224.69,224.65,0.69]
[1759397995446,0.68,224.68,224.64,31.22]
[1759397995650,0.68,224.67,224.64,31.22]
[1759397995854,5.13057856,224.69,224.64,31.22]
[1759397996033,0.68,224.68,224.64,31.22]
[1759397996233,4.45057856,224.69,224.64,36.36154442]
[1759397996434,0.68,224.68,224.64,36.36154442]
[1759397997055,0.68,224.68,224.64,35.67154442]
[1759397998945,0.68,224.68,224.64,36.36154442]
[1759398000451,133.58,224.72,224.65,0.69]
[1759398001360,138.03002337,224.72,224.65,0.69]
[1759398001557,138.03002337,224.72,224.64,36.36154442]
[1759398001757,0.68,224.71,224.64,35.67154442]
[1759398001971,0.68,224.71,224.65,0.69]
[1759398002138,0.68,224.7,224.65,0.69]
[1759398002338,0.68,224.69,224.65,0.69]
[1759398002663,0.68,224.68,224.64,31.2]
[1759398002850,0.68,224.67,224.64,31.2]
[1759398003361,5.13073561,224.69,224.64,31.89]
[1759398003538,0.68,224.68,224.64,31.89]
[1759398003738,5.13079633,224.68,224.64,31.89]
[1759398004031,0.68,224.68,224.64,36.34155481]
[1759398004235,4.45057697,224.69,224.65,0.69]
[1759398004442,0.68,224.68,224.64,31.2]
[1759398004857,4.45057697,224.69,224.64,31.2]
[1759398005161,0.68,224.68,224.64,31.2]
[1759398005733,0.68,224.68,224.64,35.65154095]
[1759398005933,132.9,224.72,224.65,0.69]
[1759398005934,133.58,224.72,224.65,0.69]
[1759398006135,0.68,224.71,224.62,0.69]
[1759398006347,0.68,224.71,224.64,31.2]
[1759398006554,133.58,224.7,224.64,31.2]
[1759398006761,0.68,224.69,224.64,31.2]
[1759398006950,0.68,224.68,224.64,31.2]
[1759398007152,0.68,224.67,224.64,31.2]
[1759398009373,4.45095629,224.68,224.64,31.2]
[1759398009544,0.68,224.66,224.64,31.2]
[1759398010144,5.13095629,224.68,224.64,31.2]
[1759398012152,0.68,224.67,224.64,31.2]
[1759398012448,15.57701721,224.69,224.6,20.8]
[1759398012658,0.68,224.66,224.59,0.2]
[1759398012977,0.68,224.66,224.6,0.69]
[1759398014273,5.13126113,224.66,224.6,5.14223365]
[1759398015262,0.68,224.65,224.6,5.14223365]
[1759398015463,0.68,224.65,224.61,0.69]
[1759398016460,132.9,224.68,224.59,57.34253525]
[1759398016461,0.68,224.64,224.59,57.34253525]
[1759398016773,146.26809036,224.68,224.6,0.69]
[1759398016959,0.68,224.66,224.6,0.69]
[1759398017691,5.13133928,224.66,224.6,0.69]
[1759398017870,5.13133928,224.66,224.59,52.2]
[1759398018060,0.68,224.65,224.59,52.2]
[1759398018263,0.68,224.64,224.59,52.2]
[1759398018489,0.68,224.64,224.59,52.89]
[1759398019083,0.68,224.63,224.59,52.2]
[1759398019260,0.68,224.62,224.6,31.2]
[1759398019460,15.57926592,224.66,224.6,31.2]
[1759398019677,0.68,224.61,224.6,31.2]
[1759398020157,5.13177232,224.63,224.59,0.2]
[1759398020359,5.13177232,224.63,224.59,31.4]
[1759398020785,5.13177232,224.63,224.59,32.09]
[1759398021157,0.68,224.63,224.59,32.09]
[1759398021672,5.13117562,224.66,224.6,0.69]
[1759398023590,5.13117562,224.66,224.6,5.14232497]
[1759398023877,0.68,224.65,224.6,5.14232497]
[1759398024072,4.45117562,224.66,224.6,5.14232497]
[1759398024267,0.7,224.65,224.6,5.14232497]
[1759398024483,0.7,224.64,224.6,5.14232497]
[1759398025789,4.45097253,224.67,224.6,5.14232497]
[1759398025973,5.15130279,224.66,224.6,5.14232497]
[1759398026176,0.7,224.65,224.6,5.14232497]
[1759398026488,0.7,224.64,224.6,5.14232497]
[1759398027781,0.7,224.66,224.61,0.7]
[1759398027966,4.45097253,224.67,224.6,4.45232497]
[1759398027967,0.7,224.65,224.6,4.45232497]
[1759398028167,4.45097253,224.67,224.61,0.7]
[1759398028370,4.45097253,224.67,224.62,31.2]
[1759398028691,0.7,224.66,224.62,31.9]
[1759398028891,0.7,224.66,224.62,31.2]
[1759398029091,0.7,224.65,224.62,31.2]
[1759398031063,4.45097253,224.67,224.62,31.2]
[1759398031268,0.7,224.66,224.62,31.2]
[1759398031581,0.7,224.65,224.62,31.2]
[1759398032779,5.15097253,224.67,224.62,36.35195259]
[1759398032983,4.45097253,224.67,224.62,36.35195259]
[1759398033188,0.7,224.66,224.62,36.35195259]
[1759398033393,0.7,224.66,224.62,35.65195259]
[1759398033570,0.7,224.65,224.62,35.65195259]
[1759398034393,0.7,224.65,224.62,31.2]
[1759398035306,0.7,224.64,224.62,31.2]
[1759398035873,4.45097253,224.67,224.62,31.2]
[1759398036090,0.7,224.66,224.62,31.2]
[1759398036300,0.7,224.65,224.62,31.2]
[1759398036817,15.57840387,224.67,224.62,31.2]
[1759398036973,0.7,224.64,224.59,0.2]
[1759398037173,0.7,224.63,224.6,31.18]
[1759398037385,5.15184424,224.63,224.6,31.18]
[1759398037567,5.15184424,224.63,224.61,31.18]
[1759398040066,5.15184424,224.63,224.59,31.38]
[1759398041094,0.7,224.62,224.59,21.0]
[1759398041300,0.7,224.62,224.59,52.18]
[1759398041495,4.45136879,224.65,224.59,57.33249869]
[1759398041496,0.7,224.64,224.59,57.33249869]
[1759398041796,5.15136879,224.65,224.6,0.7]
[1759398041980,0.7,224.64,224.6,0.7]
[1759398042294,4.45136879,224.65,224.59,56.63249869]
[1759398042496,4.45136879,224.65,224.6,0.7]
[1759398042799,0.7,224.64,224.59,56.63249869]
[1759398042998,4.45119424,224.66,224.6,0.7]
[1759398043186,5.15119424,224.66,224.61,31.18]
[1759398043387,0.7,224.65,224.61,31.18]
[1759398043781,13.36987766,224.67,224.61,31.18]
[1759398044180,13.36987766,224.67,224.62,0.7]
[1759398045198,4.45119424,224.66,224.62,0.7]
[1759398045604,4.45119424,224.66,224.61,31.18]
[1759398045984,0.7,224.65,224.61,31.18]
[1759398046179,0.7,224.64,224.61,31.18]
[1759398046398,0.7,224.64,224.61,31.88]
[1759398046793,4.45119424,224.66,224.61,31.18]
[1759398046988,4.45119424,224.66,224.62,0.7]
[1759398047194,4.45156695,224.64,224.61,31.18]
[1759398047401,4.45156695,224.64,224.62,0.7]
[1759398048422,0.7,224.64,224.61,31.18]
[1759398048583,0.7,224.64,224.61,31.88]
[1759398049318,0.7,224.65,224.61,31.88]
[1759398050917,5.15144288,224.65,224.61,31.88]
[1759398051611,4.45144288,224.65,224.61,31.88]
[1759398051808,5.15169958,224.64,224.61,31.18]
[1759398052010,0.7,224.63,224.61,31.18]
[1759398053907,4.45196331,224.62,224.61,31.18]
[1759398056014,0.7,224.65,224.61,31.89]
[1759398056217,0.7,224.64,224.61,31.89]
[1759398056400,0.7,224.64,224.61,31.18]
[1759398056716,0.7,224.64,224.61,0.71]
[1759398057399,4.45176512,224.63,224.61,0.71]
[1759398057897,4.45176512,224.63,224.62,0.71]
[1759398058220,4.45146861,224.65,224.62,0.71]
[1759398058601,5.15146861,224.65,224.62,0.71]
[1759398058914,4.45146861,224.65,224.62,0.71]
[1759398059105,5.15146861,224.65,224.62,0.71]
[1759398059822,0.7,224.64,224.6,31.89]
[1759398060120,4.45146861,224.65,224.61,0.71]
[1759398060301,5.15146861,224.65,224.61,0.71]
[1759398060612,0.7,224.64,224.61,0.71]
[1759398061016,5.15146861,224.65,224.61,0.71]
[1759398061519,0.7,224.64,224.61,0.71]
[1759398062708,5.15174756,224.64,224.61,0.71]
[1759398063407,0.7,224.66,224.62,0.71]
[1759398063615,13.36928184,224.67,224.62,0.71]
[1759398063805,0.7,224.66,224.62,0.71]
[1759398064316,0.7,224.65,224.62,0.71]
[1759398065994,13.36928184,224.67,224.63,0.71]
[1759398066317,0.7,224.66,224.63,0.71]
[1759398066521,0.7,224.65,224.61,0.71]
[1759398066827,0.7,224.65,224.62,0.71]
[1759398067434,5.15152633,224.65,224.62,31.87]
[1759398067633,0.7,224.64,224.6,31.16]
[1759398067929,0.7,224.63,224.6,31.16]
[1759398068128,17.91464793,224.65,224.59,0.2]
[1759398068129,0.7,224.62,224.59,0.2]
[1759398068503,17.91464793,224.65,224.59,0.2]
[1759398068504,0.7,224.61,224.59,0.2]
[1759398069088,17.91464793,224.65,224.59,0.2]
[1759398069089,0.7,224.62,224.59,0.2]
[1759398069490,13.37106946,224.64,224.6,0.71]
[1759398069705,14.07106946,224.64,224.61,0.71]
[1759398069936,14.07106946,224.64,224.59,0.91]
[1759398070090,0.7,224.63,224.59,0.91]
[1759398070294,0.7,224.62,224.59,0.2]
[1759398070805,0.7,224.61,224.59,0.2]
[1759398072041,0.7,224.62,224.59,0.2]
[1759398072412,5.15204074,224.62,224.59,0.2]
[1759398073048,17.8227486,224.64,224.59,0.2]
[1759398073247,0.7,224.62,224.59,0.91]
[1759398073760,17.8227486,224.64,224.59,0.2]
[1759398073909,0.7,224.61,224.59,0.2]
[1759398074113,0.7,224.6,224.59,0.2]
[1759398074530,5.15235975,224.6,224.59,0.2]
[1759398075438,0.7,224.61,224.59,0.2]
[1759398077641,5.15224115,224.61,224.59,0.2]
[1759398080028,4.45224115,224.61,224.59,0.2]
[1759398080231,0.7,224.6,224.59,0.2]
[1759398080730,5.15224115,224.61,224.59,0.2]
[1759398080922,0.7,224.6,224.59,0.2]
[1759398081647,5.15224115,224.61,224.59,0.2]
[1759398082140,133.58,224.62,224.59,0.2]
[1759398082838,137.35198533,224.62,224.59,0.2]
[1759398083042,0.68,224.61,224.59,0.2]
[1759398084439,138.03198533,224.62,224.59,0.2]
[1759398084930,137.35198533,224.62,224.59,0.2]
[1759398085131,0.68,224.61,224.59,0.2]
[1759398085527,137.35198533,224.62,224.59,0.2]
[1759398085850,133.58,224.62,224.59,0.2]
[1759398087042,132.9,224.62,224.59,0.2]
[1759398087247,0.68,224.61,224.59,0.2]
[1759398089133,132.9,224.62,224.59,0.2]
[1759398089334,133.58,224.62,224.59,0.88]
[1759398091148,132.9,224.62,224.59,0.2]
[1759398091322,132.9,224.62,224.6,0.68]
[1759398091625,133.58,224.62,224.59,0.2]
[1759398091826,133.58,224.62,224.59,0.88]
[1759398092453,138.03196644,224.62,224.59,0.88]
[1759398092943,132.9,224.62,224.6,0.68]
[1759398093137,132.9,224.62,224.61,0.68]
[1759398093550,132.9,224.62,224.59,0.88]
[1759398093731,132.9,224.62,224.6,0.68]
[1759398094138,132.9,224.62,224.59,0.2]
[1759398094139,132.9,224.62,224.59,0.88]
[1759398096661,138.03196595,224.62,224.59,0.88]
[1759398098061,138.03196595,224.62,224.59,0.2]
[1759398099341,138.03196595,224.62,224.59,0.88]